[Event "44th Chess Olympiad Women 2022"]
[Site "Chennai"]
[Date "2022.08.06"]
[Round "8.59"]
[White "Al Bulushi, Rawan"]
[Black "Tsuses, Patience"]
[Result "0-1"]
[WhiteElo "1442"]
[BlackElo "1075"]
[Annotator "NA RC"]
[PlyCount "76"]
[EventDate "2022.??.??"]
[TimeControl "60"]

1. c4 {[%emt 0:00:18]} e5 {[%emt 0:00:26]} 2. g3 {[%emt 0:00:37]} Nf6 {[%emt 0:
00:00]} 3. Bg2 {[%emt 0:00:26]} d5 {[%emt 0:00:27]} 4. cxd5 {[%emt 0:00:56]}
Nxd5 {[%emt 0:00:15]} 5. Nc3 {[%emt 0:00:43]} Be6 {[%emt 0:04:23]} 6. Nf3 {
[%emt 0:01:17]} Nxc3 {[%emt 0:01:49]} 7. bxc3 {[%emt 0:01:20]} Nd7 {[%emt 0:00:
00]} 8. d4 {[%emt 0:02:56]} exd4 {[%emt 0:01:40]} 9. Nxd4 {[%emt 0:01:36]} c6 {
[%emt 0:02:18]} 10. Nxe6 {[%emt 0:01:14]} fxe6 {[%emt 0:00:27]} 11. Be3 {
[%emt 0:03:17]} Bc5 {[%emt 0:08:33]} 12. Qb3 {[%emt 0:02:23]} Bxe3 {[%emt 0:00:
00]} 13. Qxe6+ {[%emt 0:00:36]} Qe7 {[%emt 0:00:09]} 14. Qxe7+ {[%emt 0:00:30]}
Kxe7 {[%emt 0:00:05]} 15. fxe3 {[%emt 0:00:05]} Rhf8 {[%emt 0:01:45]} 16. Rb1 {
[%emt 0:01:25]} Nc5 {[%emt 0:03:14]} 17. Rf1 {[%emt 0:00:52]} Rxf1+ {[%emt 0:
00:00]} 18. Kxf1 {[%emt 0:00:05]} Rf8+ {[%emt 0:00:40]} 19. Ke1 {[%emt 0:00:21]
} Rf6 {[%emt 0:02:03]} 20. Rb4 {[%emt 0:03:20]} h6 {[%emt 0:02:48]} 21. Rf4 {
[%emt 0:03:55]} Re6 {[%emt 0:01:26]} 22. Kd2 {[%emt 0:06:12]} g5 {[%emt 0:00:
00]} 23. Rd4 {[%emt 0:06:41]} Rd6 {[%emt 0:01:19]} 24. Rxd6 {[%emt 0:04:11]}
Kxd6 {[%emt 0:00:07]} 25. g4 {[%emt 0:01:26]} Ke5 {[%emt 0:00:30]} 26. Kc2 {
[%emt 0:04:56]} Ne4 {[%emt 0:01:43]} 27. Bf3 {[%emt 0:01:19]} b6 {[%emt 0:00:
00]} 28. Kd3 {[%emt 0:01:03]} Nc5+ {[%emt 0:00:22]} 29. Kc4 {[%emt 0:03:55]}
Kd6 {[%emt 0:00:13]} 30. Kd4 {[%emt 0:01:17]} a5 {[%emt 0:04:15]} 31. Be4 {
[%emt 0:13:14]} Nxe4 {[%emt 0:00:48]} 32. Kxe4 {[%emt 0:00:10]} b5 {[%emt 0:00:
00]} 33. Kf5 {[%emt 0:00:22]} c5 {[%emt 0:00:34]} 34. e4 {[%emt 0:02:46]} b4 {
[%emt 0:00:26]} 35. e5+ {[%emt 0:00:27]} Ke7 {[%emt 0:00:14]} 36. cxb4 {
[%emt 0:00:29]} axb4 {[%emt 0:00:36]} 37. Ke4 {[%emt 0:00:55]} Ke6 {[%emt 0:00:
00]} 38. a4 {[%emt 0:06:41]} bxa3 {[%emt 0:02:37]} 0-1

[Event "44th Chess Olympiad Women 2022"]
[Site "Chennai"]
[Date "2022.08.06"]
[Round "8.59"]
[White "Beukes Jamie-Nicole"]
[Black "Al Ghafri, Alanoud"]
[Result "1/2-1/2"]
[WhiteElo "1231"]
[BlackElo "1259"]
[Annotator "NA RC"]
[PlyCount "73"]
[EventDate "2022.??.??"]
[TimeControl "60"]

1. e4 {[%emt 0:00:03]} b6 {[%emt 0:00:17]} 2. d4 {[%emt 0:00:39]} Bb7 {[%emt 0:
00:00]} 3. Nc3 {[%emt 0:00:15]} e6 {[%emt 0:00:11]} 4. Nf3 {[%emt 0:00:42]} Nf6
{[%emt 0:01:45]} 5. Bg5 {[%emt 0:01:57]} h6 {[%emt 0:00:57]} 6. Bxf6 {[%emt 0:
00:00]} Qxf6 {[%emt 0:00:31]} 7. Qd2 {[%emt 0:10:38]} Bb4 {[%emt 0:01:01]} 8.
Bd3 {[%emt 0:04:09]} d6 {[%emt 0:05:03]} 9. a3 {[%emt 0:01:31]} Bxc3 {[%emt 0:
00:00]} 10. Qxc3 {[%emt 0:00:32]} c5 {[%emt 0:09:50]} 11. e5 {[%emt 0:04:13]}
Qd8 {[%emt 0:10:45]} 12. Bb5+ {[%emt 0:02:36]} Bc6 {[%emt 0:09:45]} 13. Bxc6+ {
[%emt 0:01:02]} Nxc6 {[%emt 0:00:07]} 14. exd6 {[%emt 0:04:38]} Qxd6 {[%emt 0:
00:00]} 15. dxc5 {[%emt 0:01:39]} Qxc5 {[%emt 0:02:04]} 16. Qxg7 {[%emt 0:00:
00]} Ke7 {[%emt 0:00:20]} 17. Qc3 {[%emt 0:07:42]} Qxc3+ {[%emt 0:01:00]} 18.
bxc3 {[%emt 0:00:08]} Rad8 {[%emt 0:00:42]} 19. Rd1 {[%emt 0:04:26]} Na5 {
[%emt 0:00:08]} 20. Ne5 {[%emt 0:02:55]} Rhg8 {[%emt 0:01:05]} 21. O-O {
[%emt 0:07:08]} Rxd1 {[%emt 0:04:59]} 22. Rxd1 {[%emt 0:00:28]} Rc8 {[%emt 0:
00:00]} 23. Rd3 {[%emt 0:02:09]} Rc5 {[%emt 0:01:48]} 24. f4 {[%emt 0:21:51]}
Nc4 {[%emt 0:01:15]} 25. Nxc4 {[%emt 0:01:32]} Rxc4 {[%emt 0:00:04]} 26. g3 {
[%emt 0:05:45]} Ra4 {[%emt 0:00:08]} 27. Kf2 {[%emt 0:00:14]} Rxa3 {[%emt 0:00:
00]} 28. Ke2 {[%emt 0:00:18]} a5 {[%emt 0:00:37]} 29. c4 {[%emt 0:01:44]} Rxd3
{[%emt 0:07:32]} 30. cxd3 {[%emt 0:00:38]} Kd6 {[%emt 0:00:03]} 31. Kd2 {
[%emt 0:01:20]} Kc5 {[%emt 0:00:22]} 32. Kc3 {[%emt 0:00:33]} b5 {[%emt 0:00:
00]} 33. cxb5 {[%emt 0:01:34]} Kxb5 {[%emt 0:00:06]} 34. Kb3 {[%emt 0:00:17]}
Kc5 {[%emt 0:01:30]} 35. g4 {[%emt 0:01:35]} Kd4 {[%emt 0:00:14]} 36. h4 {
[%emt 0:01:27]} Kxd3 {[%emt 0:00:16]} 37. h5 {[%emt 0:00:35]} 1/2-1/2

[Event "44th Chess Olympiad Women 2022"]
[Site "Chennai"]
[Date "2022.08.06"]
[Round "8.60"]
[White "Naira Sinoia"]
[Black "Aponte, Samantha"]
[Result "1-0"]
[WhiteElo "1116"]
[BlackElo "1087"]
[Annotator "NA RC"]
[PlyCount "65"]
[EventDate "2022.??.??"]
[TimeControl "60"]

1. e4 {[%emt 0:00:08]} e5 {[%emt 0:00:13]} 2. Nf3 {[%emt 0:00:06]} Nc6 {
[%emt 0:00:14]} 3. Bc4 {[%emt 0:00:05]} Bc5 {[%emt 0:01:04]} 4. d3 {[%emt 0:00:
00]} Nf6 {[%emt 0:00:37]} 5. Bg5 {[%emt 0:00:18]} d6 {[%emt 0:01:11]} 6. Nc3 {
[%emt 0:00:13]} h6 {[%emt 0:00:20]} 7. Bh4 {[%emt 0:00:11]} Be6 {[%emt 0:00:21]
} 8. Nd5 {[%emt 0:00:39]} Bxd5 {[%emt 0:03:01]} 9. Bxd5 {[%emt 0:00:23]} g5 {
[%emt 0:05:02]} 10. Bg3 {[%emt 0:00:10]} Nxd5 {[%emt 0:04:31]} 11. exd5 {
[%emt 0:00:21]} Ne7 {[%emt 0:00:59]} 12. c4 {[%emt 0:00:28]} f5 {[%emt 0:05:46]
} 13. Bxe5 {[%emt 0:05:30]} dxe5 {[%emt 0:01:49]} 14. Nxe5 {[%emt 0:04:01]} h5
{[%emt 0:18:27]} 15. Qa4+ {[%emt 0:00:16]} Kf8 {[%emt 0:05:12]} 16. Nd7+ {
[%emt 0:00:11]} Kf7 {[%emt 0:11:02]} 17. Nxc5 {[%emt 0:00:11]} Qd6 {[%emt 0:00:
00]} 18. d4 {[%emt 0:02:32]} b6 {[%emt 0:05:21]} 19. Ne6 {[%emt 0:01:11]} Rhg8
{[%emt 0:03:44]} 20. O-O-O {[%emt 0:01:06]} c6 {[%emt 0:02:05]} 21. c5 {
[%emt 0:15:25]} Qd7 {[%emt 0:06:03]} 22. d6 {[%emt 0:02:20]} Nd5 {[%emt 0:00:
00]} 23. Rhe1 {[%emt 0:07:23]} Rg6 {[%emt 0:04:05]} 24. Nc7 {[%emt 0:00:19]}
Qc8 {[%emt 0:10:51]} 25. Qxc6 {[%emt 0:01:11]} Nxc7 {[%emt 0:00:24]} 26. Re7+ {
[%emt 0:00:36]} Kg8 {[%emt 0:00:38]} 27. Rxc7 {[%emt 0:00:13]} Qf8 {[%emt 0:00:
00]} 28. Re1 {[%emt 0:00:37]} Kh8 {[%emt 0:00:24]} 29. Ree7 {[%emt 0:00:16]}
Re8 {[%emt 0:00:30]} 30. Qxe8 {[%emt 0:00:32]} Qxe8 {[%emt 0:00:27]} 31. Rxe8+
{[%emt 0:00:05]} Rg8 {[%emt 0:00:16]} 32. Rxg8+ {[%emt 0:00:07]} Kxg8 {[%emt 0:
00:00]} 33. d7 {[%emt 0:00:07]} 1-0

[Event "44th Chess Olympiad Women 2022"]
[Site "Chennai"]
[Date "2022.08.06"]
[Round "8.60"]
[White "Sagastegui, Thamara"]
[Black "Sitoe, Cheila Andre"]
[Result "0-1"]
[WhiteElo "1362"]
[BlackElo "1574"]
[Annotator "NA RC"]
[PlyCount "70"]
[EventDate "2022.??.??"]
[TimeControl "60"]

1. e4 {[%emt 0:00:01]} c5 {[%emt 0:00:08]} 2. c3 {[%emt 0:00:33]} e6 {[%emt 0:
00:00]} 3. d4 {[%emt 0:00:34]} cxd4 {[%emt 0:01:15]} 4. cxd4 {[%emt 0:00:07]}
d5 {[%emt 0:00:12]} 5. e5 {[%emt 0:00:12]} Ne7 {[%emt 0:00:52]} 6. Nf3 {
[%emt 0:01:28]} Ng6 {[%emt 0:00:21]} 7. Qc2 {[%emt 0:03:33]} Be7 {[%emt 0:00:
00]} 8. Nc3 {[%emt 0:01:45]} a6 {[%emt 0:00:11]} 9. a3 {[%emt 0:00:52]} O-O {
[%emt 0:01:37]} 10. Bd3 {[%emt 0:01:15]} Nc6 {[%emt 0:00:22]} 11. h4 {[%emt 0:
00:00]} Qa5 {[%emt 0:07:39]} 12. Qb1 {[%emt 0:03:40]} Rd8 {[%emt 0:03:41]} 13.
Bxg6 {[%emt 0:15:36]} fxg6 {[%emt 0:01:12]} 14. h5 {[%emt 0:04:36]} g5 {
[%emt 0:00:11]} 15. Bxg5 {[%emt 0:01:32]} Qc7 {[%emt 0:00:16]} 16. Bxe7 {
[%emt 0:02:38]} Qxe7 {[%emt 0:00:06]} 17. Qd3 {[%emt 0:00:41]} Bd7 {[%emt 0:00:
00]} 18. Rd1 {[%emt 0:05:34]} Rf8 {[%emt 0:00:19]} 19. Qe3 {[%emt 0:08:10]} Rf7
{[%emt 0:01:03]} 20. b4 {[%emt 0:22:58]} Raf8 {[%emt 0:00:27]} 21. Rd2 {
[%emt 0:01:39]} Rf4 {[%emt 0:01:37]} 22. Kd1 {[%emt 0:00:38]} Na7 {[%emt 0:00:
00]} 23. Ne2 {[%emt 0:00:54]} Ba4+ {[%emt 0:00:58]} 24. Ke1 {[%emt 0:00:08]}
Rg4 {[%emt 0:01:12]} 25. Ng3 {[%emt 0:00:33]} Qc7 {[%emt 0:01:12]} 26. Rb2 {
[%emt 0:00:52]} Nb5 {[%emt 0:02:12]} 27. Kd2 {[%emt 0:00:33]} Qb6 {[%emt 0:00:
00]} 28. Rc1 {[%emt 0:00:32]} h6 {[%emt 0:04:28]} 29. Ke1 {[%emt 0:00:32]} Rff4
{[%emt 0:03:33]} 30. Kd2 {[%emt 0:00:30]} Nxd4 {[%emt 0:01:00]} 31. Rc8+ {
[%emt 0:00:29]} Kf7 {[%emt 0:00:07]} 32. Nxd4 {[%emt 0:00:30]} Rxd4+ {[%emt 0:
00:00]} 33. Kc1 {[%emt 0:00:17]} Rc4+ {[%emt 0:00:38]} 34. Rxc4 {[%emt 0:00:15]
} Rxc4+ {[%emt 0:00:05]} 35. Kd2 {[%emt 0:00:27]} Qc7 {[%emt 0:01:04]} 0-1

[Event "44th Chess Olympiad Women 2022"]
[Site "Chennai"]
[Date "2022.08.06"]
[Round "8.60"]
[White "Vilhete, Vania Fausto Da T."]
[Black "Jacobs, Annelaine"]
[Result "1/2-1/2"]
[WhiteElo "1701"]
[BlackElo "1612"]
[Annotator "NA RC"]
[PlyCount "94"]
[EventDate "2022.??.??"]
[TimeControl "60"]

1. d4 {[%emt 0:00:04]} g6 {[%emt 0:00:08]} 2. c4 {[%emt 0:00:06]} Nf6 {[%emt 0:
00:00]} 3. Nc3 {[%emt 0:00:07]} Bg7 {[%emt 0:00:06]} 4. e4 {[%emt 0:00:12]} d6
{[%emt 0:00:04]} 5. Be2 {[%emt 0:00:21]} O-O {[%emt 0:01:50]} 6. Bg5 {[%emt 0:
00:00]} Nbd7 {[%emt 0:22:16]} 7. Nf3 {[%emt 0:01:29]} e5 {[%emt 0:01:13]} 8. d5
{[%emt 0:00:31]} a5 {[%emt 0:02:47]} 9. O-O {[%emt 0:00:35]} h6 {[%emt 0:02:16]
} 10. Bh4 {[%emt 0:00:30]} Nc5 {[%emt 0:00:30]} 11. Nd2 {[%emt 0:00:32]} Bd7 {
[%emt 0:08:46]} 12. Rc1 {[%emt 0:00:51]} Qe8 {[%emt 0:10:37]} 13. h3 {[%emt 0:
00:00]} Nh7 {[%emt 0:03:09]} 14. Nb3 {[%emt 0:22:27]} b6 {[%emt 0:05:41]} 15.
Bg4 {[%emt 0:20:20]} Bxg4 {[%emt 0:18:23]} 16. hxg4 {[%emt 0:01:55]} Bf6 {
[%emt 0:07:46]} 17. Bxf6 {[%emt 0:03:55]} Nxf6 {[%emt 0:00:05]} 18. Nxc5 {
[%emt 0:02:56]} bxc5 {[%emt 0:00:07]} 19. Qf3 {[%emt 0:01:47]} Kg7 {[%emt 0:00:
00]} 20. Qg3 {[%emt 0:01:33]} Qd7 {[%emt 0:03:28]} 21. f3 {[%emt 0:00:51]} Rh8
{[%emt 0:01:37]} 22. Nb5 {[%emt 0:00:53]} h5 {[%emt 0:03:27]} 23. g5 {[%emt 0:
00:00]} Ne8 {[%emt 0:00:17]} 24. f4 {[%emt 0:04:03]} h4 {[%emt 0:02:23]} 25.
Qf3 {[%emt 0:03:54]} h3 {[%emt 0:03:58]} 26. fxe5 {[%emt 0:03:13]} dxe5 {
[%emt 0:01:00]} 27. Qg3 {[%emt 0:02:34]} Qe7 {[%emt 0:00:57]} 28. gxh3 {
[%emt 0:02:37]} Nd6 {[%emt 0:00:02]} 29. Nxd6 {[%emt 0:02:16]} cxd6 {[%emt 0:
00:00]} 30. Rf6 {[%emt 0:03:19]} Rh5 {[%emt 0:00:57]} 31. Rc3 {[%emt 0:02:44]}
Rxg5 {[%emt 0:00:29]} 32. Qxg5 {[%emt 0:02:46]} Qxf6 {[%emt 0:00:13]} 33. Qxf6+
{[%emt 0:04:56]} Kxf6 {[%emt 0:00:05]} 34. Rf3+ {[%emt 0:00:18]} Ke7 {[%emt 0:
00:00]} 35. Kg2 {[%emt 0:00:15]} Rb8 {[%emt 0:00:13]} 36. b3 {[%emt 0:01:21]}
a4 {[%emt 0:00:54]} 37. Kg3 {[%emt 0:05:08]} axb3 {[%emt 0:00:32]} 38. axb3 {
[%emt 0:01:06]} Ra8 {[%emt 0:00:31]} 39. Kg4 {[%emt 0:01:04]} Ra1 {[%emt 0:00:
00]} 40. Re3 {[%emt 0:01:31]} Rg1+ {[%emt 0:00:26]} 41. Kf3 {[%emt 0:30:13]}
Rh1 {[%emt 0:01:37]} 42. Kg2 {[%emt 0:00:00]} Rb1 {[%emt 0:02:39]} 43. Kg3 {
[%emt 0:00:00]} Rg1+ {[%emt 0:00:12]} 44. Kf2 {[%emt 0:00:00]} Rb1 {[%emt 0:00:
00]} 45. Kg3 {[%emt 0:00:00]} Rg1+ {[%emt 0:00:08]} 46. Kf2 {[%emt 0:00:00]}
Rb1 {[%emt 0:00:09]} 47. Kg3 {[%emt 0:00:00]} Rg1+ {[%emt 0:00:08]} 1/2-1/2

[Event "44th Chess Olympiad Women 2022"]
[Site "Chennai"]
[Date "2022.08.06"]
[Round "8.61"]
[White "Alhasan, Zainah"]
[Black "Eversley, Kiarra"]
[Result "0-1"]
[WhiteElo "1095"]
[BlackElo "1356"]
[Annotator "NA RC"]
[PlyCount "74"]
[EventDate "2022.??.??"]
[TimeControl "60"]

1. e4 {[%emt 0:00:04]} c5 {[%emt 0:00:07]} 2. Nf3 {[%emt 0:00:07]} e6 {[%emt 0:
00:00]} 3. Nc3 {[%emt 0:00:08]} Nc6 {[%emt 0:00:56]} 4. d4 {[%emt 0:00:10]}
cxd4 {[%emt 0:00:16]} 5. Nxd4 {[%emt 0:00:11]} d6 {[%emt 0:01:04]} 6. Qd3 {
[%emt 0:01:11]} Bd7 {[%emt 0:02:48]} 7. Be3 {[%emt 0:02:45]} Nf6 {[%emt 0:00:
00]} 8. O-O-O {[%emt 0:01:29]} Ne5 {[%emt 0:03:23]} 9. Qd2 {[%emt 0:02:53]} a6
{[%emt 0:00:31]} 10. f4 {[%emt 0:01:56]} Neg4 {[%emt 0:00:55]} 11. f5 {[%emt 0:
00:00]} Nxe3 {[%emt 0:03:51]} 12. Qxe3 {[%emt 0:00:54]} Be7 {[%emt 0:04:57]}
13. Bc4 {[%emt 0:03:19]} Nd5 {[%emt 0:02:26]} 14. Qf2 {[%emt 0:02:21]} Nxc3 {
[%emt 0:01:10]} 15. bxc3 {[%emt 0:00:58]} Bg5+ {[%emt 0:00:25]} 16. Kb1 {
[%emt 0:01:37]} Qb6+ {[%emt 0:00:51]} 17. Ka1 {[%emt 0:00:59]} e5 {[%emt 0:00:
00]} 18. Qg3 {[%emt 0:01:20]} Bf6 {[%emt 0:01:49]} 19. Nb3 {[%emt 0:01:58]} O-O
{[%emt 0:02:35]} 20. Rhf1 {[%emt 0:02:12]} Bb5 {[%emt 0:01:43]} 21. Bxb5 {
[%emt 0:01:32]} axb5 {[%emt 0:00:03]} 22. Rb1 {[%emt 0:01:09]} Qa6 {[%emt 0:00:
00]} 23. Nc1 {[%emt 0:01:42]} Rfc8 {[%emt 0:01:33]} 24. Rf3 {[%emt 0:01:27]}
Rc4 {[%emt 0:00:54]} 25. Qg4 {[%emt 0:01:15]} Ra4 {[%emt 0:02:04]} 26. Rb2 {
[%emt 0:00:38]} d5 {[%emt 0:00:21]} 27. c4 {[%emt 0:01:07]} bxc4 {[%emt 0:00:
00]} 28. c3 {[%emt 0:01:56]} d4 {[%emt 0:01:05]} 29. h4 {[%emt 0:01:16]} Ra3 {
[%emt 0:01:53]} 30. Rff2 {[%emt 0:01:38]} Rxc3 {[%emt 0:00:16]} 31. Rfc2 {
[%emt 0:01:21]} Rxc2 {[%emt 0:00:29]} 32. Rxc2 {[%emt 0:00:17]} d3 {[%emt 0:00:
00]} 33. Rf2 {[%emt 0:01:20]} c3 {[%emt 0:00:29]} 34. Nb3 {[%emt 0:00:54]} c2 {
[%emt 0:01:04]} 35. Nc1 {[%emt 0:00:55]} Qa3 {[%emt 0:00:59]} 36. Rxc2 {
[%emt 0:01:22]} dxc2 {[%emt 0:00:05]} 37. Qe2 {[%emt 0:00:21]} Qxc1# {[%emt 0:
00:00]} 0-1

[Event "44th Chess Olympiad Women 2022"]
[Site "Chennai"]
[Date "2022.08.06"]
[Round "8.61"]
[White "Nema, Rabab Ahmed"]
[Black "Blackman, Katrina"]
[Result "0-1"]
[WhiteElo "1172"]
[BlackElo "1691"]
[Annotator "NA RC"]
[PlyCount "54"]
[EventDate "2022.??.??"]
[TimeControl "60"]

1. Nf3 {[%emt 0:00:02]} e6 {[%emt 0:00:09]} 2. g3 {[%emt 0:00:05]} f5 {[%emt 0:
00:00]} 3. Bg2 {[%emt 0:00:06]} Nf6 {[%emt 0:00:14]} 4. O-O {[%emt 0:00:07]} c6
{[%emt 0:00:34]} 5. c4 {[%emt 0:00:45]} d5 {[%emt 0:00:22]} 6. cxd5 {[%emt 0:
00:00]} exd5 {[%emt 0:00:56]} 7. b3 {[%emt 0:01:58]} Bd6 {[%emt 0:01:48]} 8.
Bb2 {[%emt 0:02:05]} O-O {[%emt 0:00:12]} 9. d3 {[%emt 0:05:04]} Qe7 {[%emt 0:
00:00]} 10. a3 {[%emt 0:04:03]} Nbd7 {[%emt 0:04:19]} 11. Nbd2 {[%emt 0:06:21]}
f4 {[%emt 0:02:27]} 12. Nd4 {[%emt 0:08:47]} Nb6 {[%emt 0:14:04]} 13. Re1 {
[%emt 0:08:14]} fxg3 {[%emt 0:00:23]} 14. hxg3 {[%emt 0:00:43]} Ng4 {[%emt 0:
00:00]} 15. N4f3 {[%emt 0:08:53]} Bxg3 {[%emt 0:04:18]} 16. fxg3 {[%emt 0:00:
00]} Qe3+ {[%emt 0:00:02]} 17. Kh1 {[%emt 0:03:33]} Nf2+ {[%emt 0:00:02]} 18.
Kh2 {[%emt 0:00:29]} Nxd1 {[%emt 0:00:02]} 19. Raxd1 {[%emt 0:00:55]} Rf5 {
[%emt 0:00:04]} 20. Nf1 {[%emt 0:00:44]} Rh5+ {[%emt 0:00:52]} 21. Nh4 {
[%emt 0:00:23]} Qf2 {[%emt 0:00:59]} 22. Nd2 {[%emt 0:01:39]} Bg4 {[%emt 0:00:
00]} 23. Ndf3 {[%emt 0:02:24]} Bxf3 {[%emt 0:00:24]} 24. exf3 {[%emt 0:00:23]}
Qxb2 {[%emt 0:00:07]} 25. Re7 {[%emt 0:00:36]} g5 {[%emt 0:01:10]} 26. Rde1 {
[%emt 0:00:33]} gxh4 {[%emt 0:01:02]} 27. gxh4 {[%emt 0:03:34]} Qf2 {[%emt 0:
00:00]} 0-1

[Event "44th Chess Olympiad Women 2022"]
[Site "Chennai"]
[Date "2022.08.06"]
[Round "8.61"]
[White "Reifer-Belle, Chanon"]
[Black "Hadeel Mohammad Kalandar"]
[Result "1-0"]
[WhiteElo "1213"]
[BlackElo "1083"]
[Annotator "NA RC"]
[PlyCount "55"]
[EventDate "2022.??.??"]
[TimeControl "60"]

1. e4 {[%emt 0:00:06]} e5 {[%emt 0:00:07]} 2. Nf3 {[%emt 0:00:04]} Nc6 {
[%emt 0:00:20]} 3. d4 {[%emt 0:00:06]} exd4 {[%emt 0:00:54]} 4. Bc4 {[%emt 0:
00:00]} Nf6 {[%emt 0:00:57]} 5. e5 {[%emt 0:00:12]} d5 {[%emt 0:01:41]} 6. Bb5
{[%emt 0:00:23]} Ne4 {[%emt 0:01:32]} 7. Nxd4 {[%emt 0:00:16]} Bd7 {[%emt 0:00:
00]} 8. Bxc6 {[%emt 0:00:30]} bxc6 {[%emt 0:02:11]} 9. O-O {[%emt 0:01:27]} Bc5
{[%emt 0:03:19]} 10. Be3 {[%emt 0:01:05]} Bb6 {[%emt 0:01:56]} 11. f3 {[%emt 0:
00:00]} Ng5 {[%emt 0:01:41]} 12. f4 {[%emt 0:00:23]} Ne6 {[%emt 0:11:15]} 13.
Kh1 {[%emt 0:12:11]} O-O {[%emt 0:00:12]} 14. f5 {[%emt 0:14:36]} Nxd4 {
[%emt 0:07:28]} 15. Bxd4 {[%emt 0:00:20]} c5 {[%emt 0:02:49]} 16. Bg1 {[%emt 0:
00:00]} d4 {[%emt 0:02:25]} 17. f6 {[%emt 0:08:01]} g6 {[%emt 0:04:51]} 18. Qd2
{[%emt 0:01:11]} Kh8 {[%emt 0:06:29]} 19. Qh6 {[%emt 0:00:39]} Rg8 {[%emt 0:00:
00]} 20. Rf4 {[%emt 0:08:00]} Qf8 {[%emt 0:00:46]} 21. Qg5 {[%emt 0:03:16]} Re8
{[%emt 0:07:01]} 22. Nd2 {[%emt 0:03:46]} Bf5 {[%emt 0:03:53]} 23. Nf3 {
[%emt 0:14:33]} Bxc2 {[%emt 0:04:33]} 24. Rh4 {[%emt 0:05:32]} h5 {[%emt 0:00:
00]} 25. g4 {[%emt 0:02:56]} c6 {[%emt 0:08:43]} 26. gxh5 {[%emt 0:00:53]} gxh5
{[%emt 0:00:17]} 27. Qxh5+ {[%emt 0:00:08]} Bh7 {[%emt 0:01:38]} 28. Qxh7# {
[%emt 0:00:30]} 1-0

[Event "44th Chess Olympiad Women 2022"]
[Site "Chennai"]
[Date "2022.08.06"]
[Round "8.61"]
[White "Wilson, Hannah"]
[Black "Alazmi, Aeshah"]
[Result "1-0"]
[WhiteElo "1556"]
[BlackElo "1256"]
[Annotator "NA RC"]
[PlyCount "95"]
[EventDate "2022.??.??"]
[TimeControl "60"]

1. e4 {[%emt 0:00:03]} e5 {[%emt 0:00:04]} 2. Nf3 {[%emt 0:00:09]} Nc6 {
[%emt 0:00:18]} 3. d4 {[%emt 0:00:15]} exd4 {[%emt 0:00:57]} 4. Bc4 {[%emt 0:
00:00]} Bc5 {[%emt 0:02:08]} 5. c3 {[%emt 0:00:34]} dxc3 {[%emt 0:01:18]} 6.
Bxf7+ {[%emt 0:00:23]} Kxf7 {[%emt 0:02:03]} 7. Qd5+ {[%emt 0:00:18]} Ke8 {
[%emt 0:00:25]} 8. Qh5+ {[%emt 0:00:35]} Kf8 {[%emt 0:00:55]} 9. Qxc5+ {
[%emt 0:01:05]} Qe7 {[%emt 0:00:26]} 10. Qe3 {[%emt 0:04:35]} cxb2 {[%emt 0:00:
00]} 11. Bxb2 {[%emt 0:00:48]} d6 {[%emt 0:00:22]} 12. O-O {[%emt 0:02:36]} h6
{[%emt 0:03:25]} 13. e5 {[%emt 0:12:35]} Ke8 {[%emt 0:11:29]} 14. Re1 {[%emt 0:
00:00]} Rh7 {[%emt 0:03:31]} 15. Qd3 {[%emt 0:02:16]} Be6 {[%emt 0:07:08]} 16.
Qxh7 {[%emt 0:02:47]} Rd8 {[%emt 0:00:38]} 17. exd6 {[%emt 0:01:24]} cxd6 {
[%emt 0:01:24]} 18. Qe4 {[%emt 0:04:29]} Kd7 {[%emt 0:01:59]} 19. Nd4 {[%emt 0:
00:00]} Nxd4 {[%emt 0:01:40]} 20. Qxb7+ {[%emt 0:01:26]} Ke8 {[%emt 0:00:18]}
21. Qxe7+ {[%emt 0:00:20]} Kxe7 {[%emt 0:00:27]} 22. Bxd4 {[%emt 0:00:11]} g5 {
[%emt 0:01:05]} 23. Nc3 {[%emt 0:02:20]} a6 {[%emt 0:00:17]} 24. Rab1 {[%emt 0:
00:00]} Rd7 {[%emt 0:01:11]} 25. Rb8 {[%emt 0:02:56]} Kf7 {[%emt 0:00:49]} 26.
Rxe6 {[%emt 0:00:42]} Kxe6 {[%emt 0:00:21]} 27. Rxg8 {[%emt 0:00:08]} d5 {
[%emt 0:00:17]} 28. Rg6+ {[%emt 0:00:22]} Ke7 {[%emt 0:00:15]} 29. Rg7+ {
[%emt 0:00:10]} Ke6 {[%emt 0:00:10]} 30. Rxd7 {[%emt 0:00:12]} Kxd7 {[%emt 0:
00:00]} 31. Nxd5 {[%emt 0:00:31]} a5 {[%emt 0:00:15]} 32. Bg7 {[%emt 0:00:25]}
h5 {[%emt 0:00:32]} 33. Nf6+ {[%emt 0:00:10]} Kc6 {[%emt 0:00:09]} 34. Nxh5 {
[%emt 0:00:06]} Kd5 {[%emt 0:00:10]} 35. f4 {[%emt 0:00:25]} gxf4 {[%emt 0:00:
00]} 36. Nxf4+ {[%emt 0:00:06]} Kc4 {[%emt 0:00:04]} 37. h4 {[%emt 0:00:11]} a4
{[%emt 0:00:07]} 38. h5 {[%emt 0:00:04]} Kb4 {[%emt 0:00:20]} 39. h6 {[%emt 0:
00:00]} Ka3 {[%emt 0:00:03]} 40. h7 {[%emt 0:00:10]} Kxa2 {[%emt 0:00:06]} 41.
h8=Q {[%emt 0:30:23]} a3 {[%emt 0:30:06]} 42. Qg8+ {[%emt 0:00:42]} Kb1 {
[%emt 0:00:22]} 43. Qb3+ {[%emt 0:01:07]} Kc1 {[%emt 0:00:08]} 44. Ne2+ {
[%emt 0:00:19]} Kd2 {[%emt 0:00:36]} 45. Bh6+ {[%emt 0:00:16]} Ke1 {[%emt 0:00:
00]} 46. Qb1+ {[%emt 0:00:28]} Kxe2 {[%emt 0:00:11]} 47. Qc2+ {[%emt 0:00:05]}
Ke1 {[%emt 0:00:19]} 48. Qd2# {[%emt 0:00:26]} 1-0